Cogmind - Beta 10.2 @@@ ROGUE MODE // 2021.12.18 @ 21:31:11 Player: TLFP Result: Destroyed by B-48 Gladiator with Mace Performance ------------- Evolutions (4) 2000 Regions Visited (12) 2400 Robots Destroyed (137) 685 Value Destroyed (4666) 4666 Prototype IDs (5) 100 Alien Tech Used (0) 0 Bonus (576) 576 TOTAL SCORE: 10427 Bonus ------- High Alert Combat Kills 349 Follower Combat Kills 235 Friendly Fire -8 Cogmind --------- Core Integrity 0/850 Matter 275/300 Energy 71/100 System Corruption 2% Temperature Cool (9) Movement Core (600) Ox11 Location -6/Extension Parts ------- > --- POWER (1) -------- (None) > --- PROPULSION (4) --- (None) > --- UTILITY (4) ------ Large Storage Unit Large Storage Unit Long-range Terrain Scanner > --- WEAPON (6) ------- (None) > --- INVENTORY (16) --- Light Angular Momentum Engine Light Angular Momentum Engine Fission Core Neutrino Core Improved Heat Sink Improved Heat Sink Improved Heat Sink Advanced Heat Sink Advanced Heat Sink Advanced Heat Sink Matter Compressor (250) Improved Transmission Jammer Hacking Suite System Backup Module Long-range Tractor Beam Peak State ------------ > --- POWER ------------ Light Angular Momentum Engine > --- PROPULSION ------- Light Treads Improved Medium Treads Compact Wheel Compact Wheel > --- UTILITY ---------- Large Storage Unit Large Storage Unit Hardened Medium Armor Plating Improved Light Armor Plating > --- WEAPON ----------- Gatling Laser Flak Gun Mini Assault Cannon Guided EMP Blaster Great Axe > --- INVENTORY -------- Light Angular Momentum Engine Light Angular Momentum Engine Improved Heat Sink Improved Heat Sink Advanced Heat Sink Large Storage Unit Matter Compressor Long-range Terrain Scanner Improved Light Armor Plating Hacking Suite System Backup Module Long-range Tractor Beam Gauss Rifle Magnetic Acceleration Cannon Heavy Flak Cannon Great Axe [Rating: 56] Favorites ----------- Power Deuterium Engine Engine Deuterium Engine Power Core Light Nuclear Core Propulsion Light Treads Treads Light Treads Leg Carbon-fiber Leg Wheel Armored Huge Wheel Utility Large Storage Unit Device System Backup Module Storage Large Storage Unit Processor Advanced Signal Interpreter Protection Hardened Medium Armor Plating Weapon Advanced Assault Cannon Energy Gun EM Pulse Gun Energy Cannon Heavy Particle Cannon Ballistic Gun Gauss Rifle Ballistic Cannon Advanced Assault Cannon Launcher Improved Grenade Launcher Slashing Weapon Great Axe Build | -11 -10 -10 -9 -9 -9 -8 -8 -7 -7 -7 -6 -6 ------- Run | Scr Mat Min Mat Min Exi Min Mat Fac Low Low Fac Ext Slots Evolved 8 | . . . 2 . . . 2 2 . . 2 . Power . | . . . . . . . . . . . . . Propulsion 2 | . . . 2 . . . . . . . . . Utility 2 | . . . . . . . 2 . . . . . Weapon 4 | . . . . . . . . 2 . . 2 . Parts Attached 133 | . 6 . 20 . . . 37 12 18 1 18 21 Power 12 | . . . 2 . . . 2 2 1 . 4 1 Engine 7 | . . . 1 . . . 1 1 1 . 3 . Core 5 | . . . 1 . . . 1 1 . . 1 1 Reactor . | . . . . . . . . . . . . . Propulsion 43 | . 3 . 7 . . . 13 4 2 1 4 9 Treads 24 | . 1 . 7 . . . 13 . . 1 2 . Leg 9 | . . . . . . . . . . . . 9 Wheel 10 | . 2 . . . . . . 4 2 . 2 . Hover . | . . . . . . . . . . . . . Flight . | . . . . . . . . . . . . . Utility 27 | . 2 . 1 . . . 8 1 6 . 3 6 Device 10 | . 1 . . . . . 2 . 4 . . 3 Storage 7 | . . . 1 . . . 3 1 1 . 1 . Processor 2 | . 1 . . . . . 1 . . . . . Hackware . | . . . . . . . . . . . . . Protection 8 | . . . . . . . 2 . 1 . 2 3 Artifact . | . . . . . . . . . . . . . Weapon 51 | . 1 . 10 . . . 14 5 9 . 7 5 Energy Gun 11 | . 1 . 5 . . . . . 2 . 2 1 Energy Cannon 1 | . . . . . . . 1 . . . . . Ballistic Gun 13 | . . . 3 . . . 2 4 1 . 2 1 Ballistic Cannon 10 | . . . . . . . 3 1 3 . 1 2 Launcher 11 | . . . 2 . . . 7 . 1 . 1 . Special Weapon . | . . . . . . . . . . . . . Impact Weapon . | . . . . . . . . . . . . . Slashing Weapon 5 | . . . . . . . 1 . 2 . 1 1 Piercing Weapon . | . . . . . . . . . . . . . Special Melee Weapon . | . . . . . . . . . . . . . Unidentified Prototypes 2 | . . . . . . . . . . . 2 . Parts Lost 73 | . . . 5 . . . 16 5 11 4 4 28 Power 8 | . . . . . . . 3 1 1 1 . 2 Propulsion 29 | . . . 3 . . . 7 1 3 . 2 13 Utility 7 | . . . . . . . 1 1 . 1 . 4 Weapon 29 | . . . 2 . . . 5 2 7 2 2 9 Highest Loss Streak 15 | . . . 3 . . . 4 2 6 4 1 15 Average Slot Usage (%) 85 | . 91 100 93 100 100 100 95 78 76 80 82 82 Engine 5 | . 14 14 8 . . . 7 4 7 4 4 . Core 2 | . . . 2 11 11 11 . 2 . . 1 5 Treads 15 | . 11 14 32 44 44 44 35 5 . 6 12 8 Wheel 7 | . 11 14 6 . . . . 9 14 7 8 6 Device 4 | . 3 . . . . . 11 . 5 . . 2 Storage 14 | . 14 14 11 11 11 11 9 19 16 15 13 19 Processor 6 | . 2 14 11 11 11 11 9 7 7 7 2 . Protection 2 | . . . . . . . 4 2 . 7 8 2 Energy Gun 3 | . 4 14 15 22 22 22 2 . . . 4 2 Ballistic Gun 4 | . 23 14 4 . . . 2 8 . . 4 7 Ballistic Cannon 7 | . . . . . . . 3 7 15 14 5 12 Launcher 1 | . . . 1 . . . 4 . . . 3 . Slashing Weapon 4 | . . . . . . . . 7 6 15 8 5 Naked Turns . | . . . . . . . . . . . . . Heaviest Build 89 | 10 12 11 17 17 17 17 60 79 80 67 89 85 Greatest Support 85 | 20 20 20 83 83 83 83 85 56 56 28 70 70 Greatest Overweight (x) 24 | . . . 1 . . . 1 2 2 2 4 24 Average Overweight (x) . | . . . . . . . . 1 1 1 1 1 Largest Inventory Capacity 22 | . 6 6 8 8 8 8 16 22 22 16 22 22 Average Capacity 14 | . 6 6 6 8 8 8 8 19 16 16 16 21 Most Carried 22 | . 6 6 8 8 8 8 16 22 22 15 17 22 Average Carried 13 | . 5 6 6 8 8 8 8 17 16 14 15 16 Final Capacity 22 | 6 6 6 8 8 8 8 16 22 16 16 22 16 Final Carried 22 | 6 6 6 8 8 8 8 16 22 15 14 17 15 Class Distribution -------------------- 48% | Mutant 32% | Scavenger-Mutant 14% | Hauler-Mutant Dominant Class ---------------- Mutant | -10/Materials Mutant | -10/Mines Scavenger-Mutant | -9/Materials Scavenger-Mutant | -9/Mines Scavenger-Mutant | -9/Exiles Scavenger-Mutant | -8/Mines Scavenger-Mutant | -8/Materials Hauler-Mutant | -7/Factory Mutant | -7/Lower Caves Mutant | -7/Lower Caves Scavenger-Mutant | -6/Factory Scavenger-Mutant | -6/Extension Resources | -11 -10 -10 -9 -9 -9 -8 -8 -7 -7 -7 -6 -6 ----------- Run | Scr Mat Min Mat Min Exi Min Mat Fac Low Low Fac Ext Matter Collected 4142 | 187 82 20 278 . . . 1113 531 842 31 564 494 Remotely 328 | . . . . . . . . . 328 . . . Salvage Created 5078 | . 82 . 943 . . . 1638 863 420 . 748 384 Parts 277 | . 12 . 57 . . . 94 42 24 . 34 14 Haulers Intercepted 5 | . . . 2 . . . 2 1 . . . . Recyclers Shooed 5 | . . . 1 . . . 1 1 . . 1 1 Parts Field Recycled . | . . . . . . . . . . . . . Retrieved Matter . | . . . . . . . . . . . . . Parts Self-Destructed 18 | . . . . . . . . . 18 . . . Prevented 10 | . . . . . . . . . 10 . . . Kills | -11 -10 -10 -9 -9 -9 -8 -8 -7 -7 -7 -6 -6 ------- Run | Scr Mat Min Mat Min Exi Min Mat Fac Low Low Fac Ext Combat Hostiles Destroyed 100 | . 4 . 18 . . . 38 11 13 . 11 5 Melee 5 | . . . . . . . . 3 . . 1 1 Guns 36 | . 4 . 14 . . . 9 4 2 . 2 1 Cannons 25 | . . . . . . . 13 2 7 . . 3 AOE 32 | . . . 3 . . . 15 2 4 . 8 . Classes Destroyed 15 | . 3 . 6 . . . 4 2 . . . . Worker 7 | . . . . . . . . 6 . . . 1 Builder 9 | . . . 2 . . . 3 2 . . 2 . Tunneler 1 | . . . 1 . . . . . . . . . Hauler 5 | . . . 2 . . . 2 1 . . . . Recycler 10 | . . . 1 . . . 3 3 . . 2 1 Operator 2 | . . . . . . . 1 . . . . 1 Watcher 3 | . 1 . 1 . . . 1 . . . . . Swarmer 18 | . 3 . 2 . . . 3 . 6 . 4 . Grunt 51 | . 1 . 10 . . . 20 8 7 . 3 2 Brawler 4 | . . . 2 . . . 2 . . . . . Duelist 1 | . . . . . . . 1 . . . . . Protector 1 | . . . . . . . 1 . . . . . Sentry 14 | . . . 4 . . . 8 1 . . 1 . Hunter 6 | . . . . . . . 3 . . . 2 1 Programmer 3 | . . . . . . . . 2 . . 1 . Thug 2 | . . . . . . . . . . . . 2 Best Kill Streak 10 | . 3 . 8 . . . 7 6 4 . 10 3 Combat Bots Only 7 | . 3 . 4 . . . 7 3 4 . 7 3 Max Kills in Single Turn 9 | . 1 . 2 . . . 2 3 2 . 9 1 Gunslinging 1 | . . . . . . . 1 . . . . . Exploded 6 | . . . 2 . . . 2 1 2 . 6 . Melee 1 | . . . . . . . . 1 . . 1 1 Uniques/NPCs Destroyed . | . . . . . . . . . . . . . Combat | -11 -10 -10 -9 -9 -9 -8 -8 -7 -7 -7 -6 -6 -------- Run | Scr Mat Min Mat Min Exi Min Mat Fac Low Low Fac Ext Damage Taken 12572 | . 77 . 869 . . . 2978 1358 2319 504 782 3685 Core 1824 | . 11 . 68 . . . 362 183 313 25 63 799 Absorbed by Shields . | . . . . . . . . . . . . . Core Remaining (%) 67 | 100 . 95 . . . 83 34 . . 25 . . Volleys Fired 315 | . 12 . 63 . . . 146 24 27 3 14 26 Largest 5 | . 2 . 2 . . . 2 3 4 2 4 5 Hottest 237 | . 40 . 85 . . . 98 124 231 101 231 237 Shots Fired 586 | . 24 . 93 . . . 225 65 65 6 35 73 Gun 298 | . 24 . 88 . . . 85 40 17 . 21 23 Cannon 232 | . . . . . . . 101 25 41 6 9 50 Launcher 56 | . . . 5 . . . 39 . 7 . 5 . Special . | . . . . . . . . . . . . . Kinetic 341 | . 24 . 28 . . . 86 65 43 6 17 72 Thermal 63 | . . . . . . . 46 . 3 . 13 1 Explosive 44 | . . . 5 . . . 39 . . . . . Electromagnetic 138 | . . . 60 . . . 54 . 19 . 5 . Robot Hit Streak 27 | . 6 . 12 . . . 27 13 6 . 9 10 Robot Miss Streak 7 | . 3 . 2 . . . 3 7 4 6 4 5 Penetration Max 1 | . . . . . . . . . . . . 1 Secondary Targets 2 | . . . . . . . 2 . . . . . Max Gunslinging Chain 1 | . . . . . . . 1 . . . . . Shots Hit Robots 405 | . 13 . 68 . . . 155 66 32 . 29 42 Core Hits 268 | . 7 . 39 . . . 94 41 22 . 32 33 Critical Hits 4 | . . . . . . . 2 . . . . 2 Critical Kills 3 | . . . . . . . 1 . . . . 2 Critical Parts Destroyed 1 | . . . . . . . 1 . . . . . Melee Attacks 68 | . . . . . . . . 24 16 . 22 6 Impact . | . . . . . . . . . . . . . Slashing 68 | . . . . . . . . 24 16 . 22 6 Piercing . | . . . . . . . . . . . . . Sneak Attacks 8 | . . . . . . . . 7 . . . 1 Combat Hostiles . | . . . . . . . . . . . . . Follow-up Attacks . | . . . . . . . . . . . . . Damage Inflicted 12215 | . 161 . 1338 . . . 4739 2500 1003 . 1272 1202 Guns 3350 | . 161 . 923 . . . 868 512 208 . 354 324 Cannons 3102 | . . . . . . . 1635 127 491 . 94 755 Explosions 4220 | . . . 410 . . . 2236 560 268 . 746 . Melee 1533 | . . . . . . . . 1296 36 . 78 123 Ramming 10 | . . . 5 . . . . 5 . . . . Kinetic 4092 | . 161 . 278 . . . 1275 639 491 . 203 1045 Thermal 1692 | . . . 110 . . . 647 . 171 . 730 34 Explosive 3074 | . . . 300 . . . 2214 560 . . . . Electromagnetic 1814 | . . . 645 . . . 603 . 305 . 261 . Impact . | . . . . . . . . . . . . . Slashing 1533 | . . . . . . . . 1296 36 . 78 123 Piercing . | . . . . . . . . . . . . . Highest Corruption 11 | . . . . . . . . 11 11 1 1 2 Average Corruption 4 | . . . . . . . . 5 5 1 1 1 Corruption Purged 11 | . . . . . . . . . 11 . . . Effects 91 | . . . . . . . . 36 46 . 3 6 Message Errors 33 | . . . . . . . . 10 19 . 2 2 Matter Fused 15 | . . . . . . . . 10 5 . . . Heat Flow Errors 7 | . . . . . . . . 6 1 . . . Energy Discharges 12 | . . . . . . . . 2 8 . . 2 Data Loss (minor) 16 | . . . . . . . . 3 10 . 1 2 Misfires 2 | . . . . . . . . . 2 . . . Targeting Errors 5 | . . . . . . . . 4 1 . . . Weapon Failures 1 | . . . . . . . . 1 . . . . Overload Shots . | . . . . . . . . . . . . . Overflow Damage 454 | . . . . . . . 88 307 . . 52 7 Projectiles 27 | . . . . . . . 20 . . . . 7 Explosions 126 | . . . . . . . 68 6 . . 52 . Melee 301 | . . . . . . . . 301 . . . . Knockbacks 24 | . . . . . . . 7 . 4 . . 13 Impact . | . . . . . . . . . . . . . Kinetic 24 | . . . . . . . 7 . 4 . . 13 Secondary . | . . . . . . . . . . . . . Self-Inflicted Damage 433 | . . . 14 . . . 213 . 46 . 160 . Shots 11 | . . . 1 . . . 6 . 2 . 2 . Rammed 2 | . . . 1 . . . . 1 . . . . Targets Rammed 2 | . . . 1 . . . . 1 . . . . Kicked . | . . . . . . . . . . . . . Crushed . | . . . . . . . . . . . . . Highest Temperature 442 | . 6 . 154 . . . 403 267 428 75 442 427 Average Temperature 102 | . 6 . 31 . . . 100 73 168 37 183 112 Received Heat Transfer 3783 | . 12 . 351 . . . 1179 570 675 63 117 816 Effects 19 | . . . . . . . 4 . 3 . 8 4 Shutdowns 3 | . . . . . . . . . 1 . 1 1 Interference 12 | . . . . . . . 3 . 2 . 5 2 Matter Decay 1 | . . . . . . . . . . . . 1 Short Circuit 1 | . . . . . . . . . . . 1 . Damage (minor) 2 | . . . . . . . 1 . . . 1 . Siege Activations . | . . . . . . . . . . . . . Robots Corrupted 2 | . . . 1 . . . 1 . . . . . Combat Hostiles 2 | . . . 1 . . . 1 . . . . . Parts Fried 9 | . . . 1 . . . 2 3 1 . 2 . Impact Corruptions . | . . . . . . . . . . . . . Robots Melted . | . . . . . . . . . . . . . Combat Hostiles . | . . . . . . . . . . . . . Parts Melted . | . . . . . . . . . . . . . Heat Transferred 2300 | . . . 50 . . . 975 . 225 . 975 75 Parts Sabotaged . | . . . . . . . . . . . . . Parts Stolen . | . . . . . . . . . . . . . Parts Stripped . | . . . . . . . . . . . . . Power Chain Reactions 6 | . . . . . . . 1 2 1 . 2 . Missiles Intercepted . | . . . . . . . . . . . . . Alert | -11 -10 -10 -9 -9 -9 -8 -8 -7 -7 -7 -6 -6 ------- Run | Scr Mat Min Mat Min Exi Min Mat Fac Low Low Fac Ext Peak Influence 957 | . 118 1 393 128 . . 957 567 . . 643 288 Initial 418 | . . 1 . 128 . . . 418 . . 102 198 Average 316 | . 73 1 229 128 . . 444 388 . . 352 119 Maximum Alert Level 3 | . . . 1 . . . 3 2 . . 2 1 Low Security (%) 33 | . 100 100 26 100 . 100 17 . . . 31 86 Level 1 35 | . . . 73 . . . 44 50 . . 9 13 Level 2 24 | . . . . . . . 16 49 . . 59 . Level 3 6 | . . . . . . . 21 . . . . . Level 4 . | . . . . . . . . . . . . . Level 5 . | . . . . . . . . . . . . . High Security . | . . . . . . . . . . . . . Max Security . | . . . . . . . . . . . . . Squads Dispatched 29 | . 1 . 3 . . . 11 8 . 1 4 1 Investigation 8 | . 1 . 2 . . . 1 3 . . 1 . Extermination 3 | . . . . . . . . 2 . . 1 . Reinforcement 11 | . . . 1 . . . 7 . . . 2 1 Assault 4 | . . . . . . . 3 . . 1 . . Garrison 3 | . . . . . . . . 3 . . . . Intercept . | . . . . . . . . . . . . . Construction Impeded 5 | . . . 1 . . . 2 . . . 2 . Haulers Reinforced . | . . . . . . . . . . . . . Stealth | -11 -10 -10 -9 -9 -9 -8 -8 -7 -7 -7 -6 -6 --------- Run | Scr Mat Min Mat Min Exi Min Mat Fac Low Low Fac Ext Distress Signals 9 | . . . 3 . . . 4 . . . . 2 Communications Jammed 61 | . . . . . . . . . . . . 61 Distress Signals 61 | . . . . . . . . . . . . 61 Times Spotted 208 | . 5 . 27 . . . 83 20 24 14 15 20 Peak Tracking Total 13 | . 3 . 9 . . . 9 5 8 13 6 9 Tactical Retreats 23 | . . . 1 . . . 10 . 10 . 1 1 Traps | -11 -10 -10 -9 -9 -9 -8 -8 -7 -7 -7 -6 -6 ------- Run | Scr Mat Min Mat Min Exi Min Mat Fac Low Low Fac Ext Traps Triggered 3 | . . . 1 . . . . . . . . 2 Indirectly . | . . . . . . . . . . . . . Trap Hack Attempts . | . . . . . . . . . . . . . Triggered . | . . . . . . . . . . . . . Disarmed 6 | . 6 . . . . . . . . . . . Reprogrammed . | . . . . . . . . . . . . . Reused . | . . . . . . . . . . . . . Traps Extracted . | . . . . . . . . . . . . . Installed . | . . . . . . . . . . . . . Triggered 1 | . . . . . . . . . 1 . . . Machines | -11 -10 -10 -9 -9 -9 -8 -8 -7 -7 -7 -6 -6 ---------- Run | Scr Mat Min Mat Min Exi Min Mat Fac Low Low Fac Ext Machines Disabled 28 | . . . 3 . . . 9 13 . . 3 . Max in Single Turn 4 | . . . 2 . . . 3 4 . . 3 . Garrison Access 2 | . . . . . . . 1 . . . 1 . Machines Sabotaged . | . . . . . . . . . . . . . Garrisons Compromised . | . . . . . . . . . . . . . Overloaded Fab Kills 2 | . . . . . . . . 2 . . . . Fab Network Shutdowns . | . . . . . . . . . . . . . Hacking | -11 -10 -10 -9 -9 -9 -8 -8 -7 -7 -7 -6 -6 --------- Run | Scr Mat Min Mat Min Exi Min Mat Fac Low Low Fac Ext Machines Accessed 37 | . 3 . 6 . 4 . 7 11 1 . 1 4 Terminals 25 | . 3 . 5 . . . 6 7 . . . 4 Fabricators 1 | . . . . . . . . 1 . . . . Repair Stations 1 | . . . . . . . . 1 . . . . Recycling Units 1 | . . . . . . . . 1 . . . . Scanalyzers 2 | . . . 1 . . . . 1 . . . . Garrison Access 2 | . . . . . . . 1 . . . 1 . Total Hacks 87 | . 9 . 18 . 4 . 24 23 1 . 2 6 Successful 46 | . 5 . 10 . 4 . 14 8 1 . 1 3 Failed 41 | . 4 . 8 . . . 10 15 . . 1 3 Catastrophic 6 | . 1 . . . . . 1 4 . . . . Database Lockouts . | . . . . . . . . . . . . . Manual 30 | . 2 . 9 . . . 11 6 . . 1 1 Terminals 69 | . 9 . 17 . . . 23 14 . . . 6 Fabricators 1 | . . . . . . . . 1 . . . . Repair Stations 3 | . . . . . . . . 3 . . . . Recycling Units 4 | . . . . . . . . 4 . . . . Scanalyzers 2 | . . . 1 . . . . 1 . . . . Garrison Access 3 | . . . . . . . 1 . . . 2 . Terminal Hacks 29 | . 5 . 5 . 4 . 8 3 1 . . 3 Record 5 | . 1 . . . 4 . . . . . . . Robot Analysis 1 | . 1 . . . . . . . . . . . Prototype ID Bank 1 | . . . . . . . 1 . . . . . Open Door 4 | . . . . . . . . . 1 . . 3 Branch Access Points 1 | . . . 1 . . . . . . . . . Emergency Access Points 1 | . . . . . . . . 1 . . . . Terminal Index 2 | . 1 . 1 . . . . . . . . . Fabricator Index 1 | . . . . . . . . 1 . . . . Alert Level 4 | . . . 1 . . . 2 1 . . . . Unreport Threat 3 | . . . 1 . . . 2 . . . . . Locate Traps 2 | . 1 . . . . . 1 . . . . . Disarm Traps 1 | . 1 . . . . . . . . . . . Zone Layout 3 | . . . 1 . . . 2 . . . . . Fabricator Hacks . | . . . . . . . . . . . . . Repair Station Hacks 2 | . . . . . . . . 2 . . . . Scan Component 1 | . . . . . . . . 1 . . . . Repair 1 | . . . . . . . . 1 . . . . Recycling Unit Hacks 2 | . . . . . . . . 2 . . . . Process 1 | . . . . . . . . 1 . . . . Retrieve Matter 1 | . . . . . . . . 1 . . . . Scanalyzer . | . . . . . . . . . . . . . Garrison Access Hacks 1 | . . . . . . . 1 . . . . . Seal Access 1 | . . . . . . . 1 . . . . . Unauthorized Hacks 12 | . . . 5 . . . 5 1 . . 1 . Terminals 9 | . . . 4 . . . 5 . . . . . Track 4 | . . . 1 . . . 3 . . . . . Assimilate 2 | . . . . . . . 2 . . . . . Botnet 1 | . . . 1 . . . . . . . . . Disrupt 1 | . . . 1 . . . . . . . . . Operators 1 | . . . 1 . . . . . . . . . Fabricators 1 | . . . . . . . . 1 . . . . Overload 1 | . . . . . . . . 1 . . . . Repair Stations . | . . . . . . . . . . . . . Recycling Units . | . . . . . . . . . . . . . Scanalyzers 1 | . . . 1 . . . . . . . . . Extract 1 | . . . 1 . . . . . . . . . Garrison Access 1 | . . . . . . . . . . . 1 . Jam 1 | . . . . . . . . . . . 1 . Data Cores Recovered 1 | . . . . . . . . . . . . 1 Used 1 | . . . . . . . . . . . . 1 Hacking Detections 26 | . 2 . 5 . . . 5 10 . . 1 3 Full Trace Events 5 | . 1 . . . . . 2 2 . . . . Feedback Events . | . . . . . . . . . . . . . Feedback Blocked . | . . . . . . . . . . . . . Robot Schematics Acquired . | . . . . . . . . . . . . . Robots Built . | . . . . . . . . . . . . . Matter . | . . . . . . . . . . . . . Time . | . . . . . . . . . . . . . Total Robot Build Rating . | . . . . . . . . . . . . . Part Schematics Acquired 3 | . . . 3 . . . . . . . . . Parts Built . | . . . . . . . . . . . . . Matter . | . . . . . . . . . . . . . Time . | . . . . . . . . . . . . . Total Part Build Rating . | . . . . . . . . . . . . . Parts Repaired 1 | . . . . . . . . 1 . . . . Time 38 | . . . . . . . . 38 . . . . Parts Recycled . | . . . . . . . . . . . . . Recycled Matter . | . . . . . . . . . . . . . Retrieved Matter . | . . . . . . . . . . . . . Retrieved Components . | . . . . . . . . . . . . . Parts Scanalyzed . | . . . . . . . . . . . . . Part Schematics Acquired . | . . . . . . . . . . . . . Parts Damaged . | . . . . . . . . . . . . . Bothacking | -11 -10 -10 -9 -9 -9 -8 -8 -7 -7 -7 -6 -6 ------------ Run | Scr Mat Min Mat Min Exi Min Mat Fac Low Low Fac Ext Used RIF Installer . | . . . . . . . . . . . . . Robots Hacked . | . . . . . . . . . . . . . Non-combat . | . . . . . . . . . . . . . Combat . | . . . . . . . . . . . . . Robot Hacks Applied . | . . . . . . . . . . . . . Relay Couplers Released 1 | . . . . . . . . . . . 1 . Machine Destruction 1 | . . . . . . . . . . . 1 . Robots Rewired 4 | . . . . . . . . . . . . 4 Allies Hacked . | . . . . . . . . . . . . . Hacks Repelled . | . . . . . . . . . . . . . Allies | -11 -10 -10 -9 -9 -9 -8 -8 -7 -7 -7 -6 -6 -------- Run | Scr Mat Min Mat Min Exi Min Mat Fac Low Low Fac Ext Total Allies 9 | . . . . . . . 1 . . . . 8 Largest Group 6 | . . . . . . . 1 . . . . 6 Highest-Rated Group 158 | . . . . . . . 10 . . . . 158 Highest-Rated Ally 31 | . . . . . . . 10 . . . . 31 Total Orders . | . . . . . . . . . . . . . Ally Attacks 40 | . . . . . . . . . . . . 40 Total Damage 851 | . . . . . . . . . . . . 851 Kills 6 | . . . . . . . . . . . . 6 Allies Corrupted . | . . . . . . . . . . . . . Allies Melted . | . . . . . . . . . . . . . Intel | -11 -10 -10 -9 -9 -9 -8 -8 -7 -7 -7 -6 -6 ------- Run | Scr Mat Min Mat Min Exi Min Mat Fac Low Low Fac Ext Robot Analysis Total 1 | . 1 . . . . . . . . . . . Derelict Logs Recovered 1 | . . . . . . . . . 1 . . . Drone Launches . | . . . . . . . . . . . . . Drone Recoveries . | . . . . . . . . . . . . . Exploration | -11 -10 -10 -9 -9 -9 -8 -8 -7 -7 -7 -6 -6 ------------- Run | Scr Mat Min Mat Min Exi Min Mat Fac Low Low Fac Ext Turns Passed 10942 | . 466 120 667 70 645 40 2142 1853 2987 104 822 1026 Spaces Moved 5301 | 1 277 76 354 43 404 26 932 1247 899 77 423 542 Core 1 | . . . . . . . . . . . . 1 Treads 2463 | . 209 76 203 43 404 26 932 294 . . 132 144 Legs 237 | 1 68 . . . . . . . . . . 168 Wheels 2600 | . . . 151 . . . . 953 899 77 291 229 Hover . | . . . . . . . . . . . . . Flight . | . . . . . . . . . . . . . Fastest Speed 90 | 120 120 160 90 160 160 160 155 110 100 110 110 120 Average Speed 137 | 120 150 160 130 160 160 160 159 127 110 119 136 147 Slowest Speed 1250 | 120 160 160 160 160 160 160 180 200 120 120 200 1250 Overloaded Moves . | . . . . . . . . . . . . . Propulsion Burnouts . | . . . . . . . . . . . . . Robots Hopped . | . . . . . . . . . . . . . Cave-ins Triggered 1 | . . . . . . . . . 1 . . . Exploration Rate (%) 37 | 1 44 29 37 10 89 8 86 29 78 13 11 53 Regions Visited 12 Branch Regions 7 Pre-discovered Areas . | . . . . . . . . . . . . . Known Exits Taken 11 | . 1 1 1 1 1 1 1 1 1 1 1 . Unknown Exits Taken 1 | 1 . . . . . . . . . . . . Scrap Searched 4 | . . 1 . . . . . . 3 . . . Spaces Dug 64 | . . . 7 . . . 25 1 13 . 14 4 Terrain Destroyed 634 | . . . 48 . . . 389 52 31 5 93 16 Melee 32 | . . . . . . . . 1 13 . 14 4 Projectile 76 | . . . . . . . 35 10 13 5 1 12 AOE 526 | . . . 48 . . . 354 41 5 . 78 . Terrain Rammed . | . . . . . . . . . . . . . Walls Destroyed . | . . . . . . . . . . . . . Machines Disabled . | . . . . . . . . . . . . . Actions | -11 -10 -10 -9 -9 -9 -8 -8 -7 -7 -7 -6 -6 --------- Run | Scr Mat Min Mat Min Exi Min Mat Fac Low Low Fac Ext Total 8288 | . 305 75 466 44 403 25 1359 1419 2806 83 604 699 Wait 2287 | . 5 . 14 2 . . 199 69 1831 3 107 57 Move 5289 | . 276 75 353 42 403 25 931 1246 898 76 422 542 Hop . | . . . . . . . . . . . . . Pick Up 104 | . 3 . 7 . . . 27 27 13 . 11 16 Fast Attach 24 | . 1 . 4 . . . 6 2 2 . 9 . Attach 59 | . 2 . 4 . . . 11 8 10 1 5 18 Detach . | . . . . . . . . . . . . . Swap 50 | . 3 . 12 . . . 20 2 6 . 4 3 Drop 59 | . 3 . 8 . . . 19 16 3 . 10 . Fire 315 | . 12 . 63 . . . 146 24 27 3 14 26 Melee 68 | . . . . . . . . 24 16 . 22 6 Ram . | . . . . . . . . . . . . . Kick . | . . . . . . . . . . . . . Crush 2 | . . . 1 . . . . 1 . . . . Escape Stasis 4 | . . . . . . . . . . . . 4 Rewire 27 | . . . . . . . . . . . . 27 Trap . | . . . . . . . . . . . . . Miscellaneous . | . . . . . . . . . . . . . Route ------- -11/Scrapyard -10/Materials (discovered 3 exits: *Mat / *Min x2) -10/Mines -9/Materials (discovered 3 exits: *Mat / *Min x2) -9/Mines -9/Exiles -8/Mines -8/Materials (discovered 2 exits: *Fac x2) -7/Factory (discovered 2 exits: *Fac / *Low) -7/Lower Caves -7/Lower Caves -6/Factory (discovered 3 exits: Fac x2 / *Ext) -6/Extension History --------- Turn | Location | Event 1 | -11/Scrapyard | Discovered new exit (range 0) 1 | -11/Scrapyard | Entered Materials 12 | -10/Materials | Discovered new exit (range 11) 312 | -10/Materials | Build established: Mutant 347 | -10/Materials | Discovered new exit (range 16) 374 | -10/Materials | Identified exit to Materials 435 | -10/Materials | Discovered new exit (range 15) 465 | -10/Materials | Identified exit to Mines 467 | -10/Materials | Entered Mines 555 | -10/Mines | Discovered exit to Materials (range 8) 587 | -10/Mines | Entered Materials 587 | -9/Materials | Evolved 2 slots: Propulsion x2 667 | -9/Materials | Identified exit to Mines 1023 | -9/Materials | Lost 3 parts (2n1w) 1075 | -9/Materials | Discovered new exit (range 4) 1078 | -9/Materials | Identified exit to Materials 1254 | -9/Materials | Entered Mines 1317 | -9/Mines | Deemed a non-threat by the Exiles lab entrance 1317 | -9/Mines | Discovered new exit (range 5) 1322 | -9/Mines | Identified exit to Exiles 1324 | -9/Mines | Entered Exiles 1324 | -9/Exiles | Found Exiles lab abandoned 1334 | -9/Exiles | Build established: Scavenger-Mutant 1950 | -9/Exiles | Discovered new exit (range 14) 1968 | -9/Exiles | Identified exit to Mines 1969 | -9/Exiles | Entered Mines 1971 | -8/Mines | Discovered exit to Materials (range 14) 2009 | -8/Mines | Entered Materials 2009 | -8/Materials | Evolved 2 slots: Utility x2 2167 | -8/Materials | Destroyed 7 combat bots 2173 | -8/Materials | Lost 4 parts (1p1n1u1w) 2431 | -8/Materials | Lost 3 parts (3w) 2500 | -8/Materials | Lost 3 parts (3n) 2710 | -8/Materials | Discovered new exit (range 7) 2766 | -8/Materials | Identified exit to Factory 3409 | -8/Materials | Core integrity fell below 50% 3609 | -8/Materials | First assault squad dispatched 3662 | -8/Materials | Build established: Mutant 4115 | -8/Materials | Discovered exit to Factory (range 16) 4151 | -8/Materials | Entered Factory 4151 | -7/Factory | Evolved 2 slots: Weapon x2 4431 | -7/Factory | Repaired Adv. Terrain Scanner 4652 | -7/Factory | Discovered new exit (range 10) 4703 | -7/Factory | Identified exit to Factory 5223 | -7/Factory | Build established: Hauler-Mutant 5494 | -7/Factory | Garrison activated, responded to threat 5904 | -7/Factory | System corruption reached 10% 6000 | -7/Factory | Discovered new exit (range 3) 6003 | -7/Factory | Identified exit to Lower Caves 6004 | -7/Factory | Entered Lower Caves 6330 | -7/Lower Caves | Build established: Mutant 8326 | -7/Lower Caves | Spotted B-75 Beast 8424 | -7/Lower Caves | Crushed by falling debris 8464 | -7/Lower Caves | Build established: Hauler-Mutant 8519 | -7/Lower Caves | Attracted the attention of an 0b10 base 8524 | -7/Lower Caves | Core integrity fell below 50% 8582 | -7/Lower Caves | Lost 6 parts (1p2n3w) 8792 | -7/Lower Caves | Learned 8 Factory zone layouts 8913 | -7/Lower Caves | Lost 3 parts (1n2w) 8985 | -7/Lower Caves | Discovered new exit (range 5) 8990 | -7/Lower Caves | Identified exit to Lower Caves 8991 | -7/Lower Caves | Entered another Lower Caves area 9055 | -7/Lower Caves | Discovered exit to Factory (range 9) 9065 | -7/Lower Caves | Attracted the attention of an 0b10 outpost 9095 | -7/Lower Caves | Entered Factory 9095 | -6/Factory | Evolved 2 slots: Weapon x2 9096 | -6/Factory | Identified exit to Factory 9096 | -6/Factory | Identified exit to Extension 9125 | -6/Factory | Lost 4 parts (1p1u2w) 9178 | -6/Factory | Build established: Mutant 9490 | -6/Factory | Destroyed 7 combat bots 9581 | -6/Factory | Spotted B-75 Beast 9795 | -6/Factory | Build established: Scavenger-Mutant 9917 | -6/Factory | Entered Extension 10066 | -6/Extension | Spotted B-75 Beast 10217 | -6/Extension | Rescued a captive Derelict 10619 | -6/Extension | Lost 9 parts (1p3n1u4w) 10667 | -6/Extension | Disrupted transfer network 10696 | -6/Extension | Rescued a captive Derelict 10696 | -6/Extension | Rescued a captive Derelict 10841 | -6/Extension | Rescued a captive Derelict 10885 | -6/Extension | Spotted B-75 Beast 10913 | -6/Extension | Core integrity fell below 50% 10924 | -6/Extension | Core integrity fell below 20% 10943 | -6/Extension | Destroyed by B-48 Gladiator with Mace Last Messages --------------- 10909_ Carbon-fiber Leg destroyed. 10910_ T7-T0L(b) destroyed. 10911_ Penetrated by Slug. 10911_ Critical hit. 10911_ Carbon-fiber Leg destroyed. 10911_ Penetrated by Slug. 10914_ System corrupted: Energy discharge (-25). 10917_ Great Axe destroyed. 10919_ Penetrated by Slug. 10919_ Hvy. Flak Cannon destroyed. 10919_ Slug penetrates B-75 Beast. 10920_ Carbon-fiber Leg destroyed. 10922_ Slug penetrates B-75 Beast. 10924_ Carbon-fiber Leg destroyed. 10931_ Knocked back. 10935_ Slug penetrates B-75 Beast. 10935_ Slug penetrates Reinforced Barrier. 10936_ Lrg. Storage Unit destroyed. 10936_ System corrupted by crushing effect (+1). 10943_ Carbon-fiber Leg destroyed. Map ----- +----------------------------------------------------+ | ???????????????# #???????????????????????????????? | | ???????????????# #???????????????????????????????? | | ???????????#???# #???????????????????????????????? | | ???????????????# #???????????????????????????????? | | ???????????????# #???????????????????????????????? | | ????#??????????# #?#?????????????????????????????? | | ??????????????## #?###?##?? #????????????????????? | | ?????????????##" ### ## ###"##???????????????????? | | ?????????????# % " ""%""#??????????????????? | | ?#??????????## = = """ #??????????????????? | | ?#??????????#" %%% #??????????????????? | | ????????#??### %! #??????????????????? | | #############" ! ######?????????????? | | "%" = %= ????????????? | | " % ! ?????????????? | | ! /%! ! ???? ????????? | | = !!%= A ?????????????? | | = *=* ?????????????? | | ############## ####???????????????? | | ?????????????# BB #??????????????????? | | ?????????????# BB #??????????????????? | | ?????#???????# #??????????????????? | | ?????????????# ##???????????#?????? | | ??#??????????#####" #"""#g;####??????????????????? | | ?????????#???????####???#bg #????????????????????? | | #???????????#???????????#@###????????????????????? | | | | | | | | | | | | | | | | | | | | | | | | | | | | | | | | | | | | | | | | | | | | | | | | | +----------------------------------------------------+ Best States ------------- Heat Dissipation 48 Energy Generation 18 Energy Capacity 290 Matter Stores 300 Matter Capacity 300 Sight Range 16 Terrain Scan Range 24 Terrain Scan Density 10 Jamming Range 12 Armor Coverage 375 Evasion (%) 42 Recoil Reduction 4 Item Schematics ----------------- Beam Cannon | -9/Materials | Extracted Hvy. Ion Engine | -9/Materials | Extracted Terrain Scanner | -9/Materials | Extracted Robot Schematics ------------------ None Fabricated ------------ Nothing Alien Tech Used ----------------- None Achievements -------------- None Challenges ------------ None Game ------ Seed AssemblyEtherialDerivative Manual? 0 Play Time 01:26:09 Cumulative 49.9 hours Start 2021.12.17 @ 21:55:14 End 2021.12.18 @ 21:31:11 Sessions 5 Manual Loads 0 Difficulty Rogue Special Mode None Game No. 36 Rogue 7 Adventurer 24 Explorer 5 Win Type - Total 0 Types 0/0/0/0/0/0/0/0/0 Lore% 30 Gallery% 49 Achievement% 39 Wizard Run 0 Options --------- ASCII 0 Keyboard 0 Movement Mouse Keybinds 0 Fullscreen 1 Font 18/SmallcapsGlow Map View 76x50 Tactical HUD 1 Map Filters NONE Filters NONE Steam 1 RUN: 9200ac7d-c55a-448a-885a-6445c07afd39